[Event "TOP 12F 2021"]
[Site "RENNES, France"]
[Date "2021.08.27"]
[Round "3.2"]
[White "Benmesbah, Natacha"]
[Black "Guichard, Pauline"]
[Result "1/2-1/2"]
[TimeControl "1H30 + 30 sec/coup"]
[WhiteElo "2239"]
[BlackElo "2414"]

1. e4 {[%clk 01:30:57]} {[%emt 00:00:01]} e5 {[%clk 01:30:56]} {[%emt
00:00:04]} 2. Nf3 {[%clk 01:31:25]} {[%emt 00:00:03]} Nc6 {[%clk 01:31:20]}
{[%emt 00:00:06]} 3. Bc4 {[%clk 01:31:51]} {[%emt 00:00:05]} Nf6 {[%clk
01:31:44]} {[%emt 00:00:05]} 4. d3 {[%clk 01:32:18]} {[%emt 00:00:03]} Bc5
{[%clk 01:32:08]} {[%emt 00:00:06]} 5. c3 {[%clk 01:32:41]} {[%emt 00:00:07]}
a6 {[%clk 01:32:29]} {[%emt 00:00:09]} 6. a4 {[%clk 01:31:42]} {[%emt
00:01:29]} Ba7 {[%clk 01:32:34]} {[%emt 00:00:25]} 7. O-O {[%clk 01:30:40]}
{[%emt 00:01:32]} d6 {[%clk 01:32:50]} {[%emt 00:00:13]} 8. Nbd2 {[%clk
01:29:35]} {[%emt 00:01:36]} O-O {[%clk 01:32:53]} {[%emt 00:00:27]} 9. h3
{[%clk 01:29:00]} {[%emt 00:01:05]} h6 {[%clk 01:33:06]} {[%emt 00:00:16]} 10.
Re1 {[%clk 01:28:40]} {[%emt 00:00:51]} Re8 {[%clk 01:33:14]} {[%emt 00:00:22]}
11. b4 {[%clk 01:27:01]} {[%emt 00:02:09]} Be6 {[%clk 01:17:35]} {[%emt
00:16:08]} 12. Bxe6 {[%clk 01:25:42]} {[%emt 00:01:49]} Rxe6 {[%clk 01:17:57]}
{[%emt 00:00:07]} 13. Qc2 {[%clk 01:26:05]} {[%emt 00:00:08]} Ne7 {[%clk
01:15:25]} {[%emt 00:03:01]} 14. Nf1 {[%clk 01:21:43]} {[%emt 00:04:53]} Ng6
{[%clk 01:14:55]} {[%emt 00:01:00]} 15. Be3 {[%clk 01:15:51]} {[%emt 00:06:22]}
Bxe3 {[%clk 01:14:21]} {[%emt 00:01:04]} 16. Nxe3 {[%clk 01:16:02]} {[%emt
00:00:19]} c6 {[%clk 01:14:40]} {[%emt 00:00:11]} 17. g3 {[%clk 01:07:08]}
{[%emt 00:09:25]} d5 {[%clk 01:12:05]} {[%emt 00:03:04]} 18. c4 {[%clk
01:03:44]} {[%emt 00:03:54]} a5 {[%clk 01:02:36]} {[%emt 00:09:59]} 19. b5
{[%clk 01:00:54]} {[%emt 00:03:21]} d4 {[%clk 01:02:45]} {[%emt 00:00:20]} 20.
Nf1 {[%clk 01:00:10]} {[%emt 00:01:15]} c5 {[%clk 01:02:04]} {[%emt 00:01:12]}
21. Kg2 {[%clk 00:58:33]} {[%emt 00:02:06]} Ne8 {[%clk 00:55:04]} {[%emt
00:07:29]} 22. h4 {[%clk 00:56:33]} {[%emt 00:02:31]} Nd6 {[%clk 00:54:03]}
{[%emt 00:01:31]} 23. h5 {[%clk 00:55:56]} {[%emt 00:01:07]} Nf8 {[%clk
00:54:10]} {[%emt 00:00:22]} 24. N1h2 {[%clk 00:54:50]} {[%emt 00:01:37]} Nh7
{[%clk 00:51:16]} {[%emt 00:03:23]} 25. Qd2 {[%clk 00:52:52]} {[%emt 00:02:28]}
Qe7 {[%clk 00:47:42]} {[%emt 00:04:04]} 26. Ng4 {[%clk 00:49:58]} {[%emt
00:03:25]} b6 {[%clk 00:43:46]} {[%emt 00:04:26]} 27. Nh4 {[%clk 00:25:28]}
{[%emt 00:25:00]} Qd7 {[%clk 00:43:22]} {[%emt 00:00:54]} 28. f3 {[%clk
00:20:13]} {[%emt 00:05:45]} Nf6 {[%clk 00:37:08]} {[%emt 00:06:43]} 29. Rh1
{[%clk 00:16:44]} {[%emt 00:04:00]} Rae8 {[%clk 00:31:20]} {[%emt 00:06:18]} 30.
Rae1 {[%clk 00:15:59]} {[%emt 00:01:16]} Kh7 {[%clk 00:30:19]} {[%emt
00:01:31]} 31. Nf5 {[%clk 00:15:14]} {[%emt 00:01:15]} Ng8 {[%clk 00:27:37]}
{[%emt 00:03:11]} 32. Nf2 {[%clk 00:11:51]} {[%emt 00:03:53]} Qd8 {[%clk
00:21:29]} {[%emt 00:06:38]} 33. Kf1 {[%clk 00:08:20]} {[%emt 00:04:01]} Qg5
{[%clk 00:16:40]} {[%emt 00:05:18]} 34. Qxg5 {[%clk 00:06:43]} {[%emt
00:02:07]} hxg5 {[%clk 00:17:00]} {[%emt 00:00:09]} 35. Nh3 {[%clk 00:04:11]}
{[%emt 00:03:03]} f6 {[%clk 00:16:55]} {[%emt 00:00:35]} 36. g4 {[%emt
00:03:57]} 1/2-1/2

[Event "TOP 12F 2021"]
[Site "RENNES, France"]
[Date "2021.08.27"]
[Round "3.3"]
[White "Afraoui, Anaelle"]
[Black "Broly, Mathilde"]
[Result "1/2-1/2"]
[TimeControl "1H30 + 30 sec/coup"]
[WhiteElo "2118"]
[BlackElo "2154"]

1. e4 {[%clk 01:30:57]} {[%emt 00:00:02]} e5 {[%clk 01:30:34]} {[%emt
00:00:27]} 2. Nf3 {[%clk 01:31:17]} {[%emt 00:00:09]} Nc6 {[%clk 01:30:51]}
{[%emt 00:00:12]} 3. Bb5 {[%clk 01:31:42]} {[%emt 00:00:06]} a6 {[%clk
01:30:26]} {[%emt 00:00:56]} 4. Ba4 {[%clk 01:32:07]} {[%emt 00:00:05]} Nf6
{[%clk 01:30:43]} {[%emt 00:00:13]} 5. O-O {[%clk 01:32:17]} {[%emt 00:00:19]}
b5 {[%clk 01:30:40]} {[%emt 00:00:34]} 6. Bb3 {[%clk 01:32:41]} {[%emt
00:00:06]} Bc5 {[%clk 01:31:00]} {[%emt 00:00:10]} 7. c3 {[%clk 01:31:35]}
{[%emt 00:01:36]} d6 {[%clk 01:31:22]} {[%emt 00:00:08]} 8. d4 {[%clk
01:30:56]} {[%emt 00:01:09]} Bb6 {[%clk 01:31:45]} {[%emt 00:00:07]} 9. a4
{[%clk 01:29:57]} {[%emt 00:01:30]} Rb8 {[%clk 01:30:13]} {[%emt 00:02:02]} 10.
axb5 {[%clk 01:29:28]} {[%emt 00:00:59]} axb5 {[%clk 01:30:36]} {[%emt
00:00:07]} 11. Na3 {[%clk 01:29:20]} {[%emt 00:00:38]} O-O {[%clk 01:30:00]}
{[%emt 00:01:06]} 12. Nxb5 {[%clk 01:19:10]} {[%emt 00:10:41]} Bg4 {[%clk
01:29:33]} {[%emt 00:00:56]} 13. Bc2 {[%clk 01:12:27]} {[%emt 00:07:13]} exd4
{[%clk 01:05:51]} {[%emt 00:24:12]} 14. cxd4 {[%clk 01:08:16]} {[%emt
00:04:42]} Re8 {[%clk 01:06:04]} {[%emt 00:00:17]} 15. Re1 {[%clk 00:58:33]}
{[%emt 00:10:12]} Ra8 {[%clk 01:05:40]} {[%emt 00:00:54]} 16. Rxa8 {[%clk
00:53:47]} {[%emt 00:05:16]} Qxa8 {[%clk 01:01:08]} {[%emt 00:05:02]} 17. h3
{[%clk 00:46:02]} {[%emt 00:08:14]} Bxf3 {[%clk 00:55:15]} {[%emt 00:06:23]} 18.
Qxf3 {[%clk 00:45:46]} {[%emt 00:00:46]} Qa5 {[%clk 00:54:48]} {[%emt
00:00:58]} 19. Qe2 {[%clk 00:46:01]} {[%emt 00:00:14]} Nxd4 {[%clk 00:52:59]}
{[%emt 00:02:20]} 20. Nxd4 {[%clk 00:46:12]} {[%emt 00:00:19]} Bxd4 {[%clk
00:53:19]} {[%emt 00:00:09]} 21. Bd3 {[%clk 00:32:27]} {[%emt 00:14:14]} d5
{[%clk 00:34:08]} {[%emt 00:19:41]} 22. Bd2 {[%clk 00:12:53]} {[%emt 00:20:05]}
Qb6 {[%clk 00:31:10]} {[%emt 00:03:28]} 23. Qf3 {[%clk 00:09:17]} {[%emt
00:04:06]} dxe4 {[%clk 00:23:50]} {[%emt 00:07:49]} 24. Bxe4 {[%clk 00:09:02]}
{[%emt 00:00:45]} Bxf2+ {[%clk 00:24:00]} {[%emt 00:00:20]} 25. Qxf2 {[%clk
00:08:47]} {[%emt 00:00:45]} Qxf2+ {[%clk 00:24:25]} {[%emt 00:00:05]} 26. Kxf2
{[%clk 00:09:14]} {[%emt 00:00:03]} Rxe4 {[%clk 00:24:48]} {[%emt 00:00:07]} 27.
Rc1 {[%clk 00:08:00]} {[%emt 00:01:44]} Re7 {[%clk 00:20:38]} {[%emt 00:04:39]}
28. Bb4 {[%clk 00:06:33]} {[%emt 00:01:58]} Rd7 {[%clk 00:20:54]} {[%emt
00:00:15]} 29. Rc2 {[%clk 00:04:18]} {[%emt 00:02:43]} h6 {[%clk 00:18:48]}
{[%emt 00:02:37]} 30. Ba5 {[%clk 00:03:02]} {[%emt 00:01:46]} Nd5 {[%clk
00:18:44]} {[%emt 00:00:34]} 31. Kf3 {[%clk 00:02:37]} {[%emt 00:00:55]} f5
{[%clk 00:18:27]} {[%emt 00:00:47]} 32. Bd2 {[%clk 00:01:40]} {[%emt 00:01:27]}
Kf7 {[%clk 00:17:22]} {[%emt 00:01:35]} 33. g4 {[%clk 00:01:12]} {[%emt
00:00:58]} fxg4+ {[%clk 00:14:47]} {[%emt 00:03:04]} 34. hxg4 {[%clk 00:01:41]}
{[%emt 00:00:02]} Ke6 {[%clk 00:14:47]} {[%emt 00:00:30]} 35. Be1 {[%clk
00:01:31]} {[%emt 00:00:40]} Rf7+ {[%clk 00:14:14]} {[%emt 00:01:02]} 36. Kg3
{[%clk 00:01:23]} {[%emt 00:00:38]} Kd6 {[%clk 00:13:26]} {[%emt 00:01:18]} 37.
Bf2 {[%clk 00:01:42]} {[%emt 00:00:12]} Nf6 {[%clk 00:12:46]} {[%emt 00:01:09]}
38. Rd2+ {[%clk 00:01:38]} {[%emt 00:00:34]} Kc6 {[%clk 00:12:46]} {[%emt
00:00:30]} 39. Rc2+ {[%clk 00:02:01]} {[%emt 00:00:08]} Kd5 {[%clk 00:12:35]}
{[%emt 00:00:40]} 40. Rd2+ {[%clk 00:01:30]} {[%emt 00:01:01]} Kc4 {[%clk
00:12:45]} {[%emt 00:00:19]} 41. Re2 {[%clk 00:01:25]} {[%emt 00:00:35]} Kd3
{[%clk 00:11:41]} {[%emt 00:01:34]} 42. Re3+ {[%clk 00:01:23]} {[%emt
00:00:33]} Kd2 {[%clk 00:12:03]} {[%emt 00:00:08]} 43. Re5 {[%clk 00:00:53]}
{[%emt 00:01:00]} Kd3 {[%clk 00:09:22]} {[%emt 00:03:11]} 44. Re3+ {[%clk
00:01:00]} {[%emt 00:00:23]} Kc2 {[%clk 00:09:42]} {[%emt 00:00:10]} 45. Re2+
{[%clk 00:00:57]} {[%emt 00:00:34]} Kd1 {[%clk 00:09:26]} {[%emt 00:00:45]} 46.
Re1+ {[%clk 00:00:57]} {[%emt 00:00:31]} Kd2 {[%clk 00:09:46]} {[%emt
00:00:09]} 47. Re5 {[%clk 00:01:09]} {[%emt 00:00:18]} Rd7 {[%clk 00:08:31]}
{[%emt 00:01:45]} 48. Bc5 {[%clk 00:00:52]} {[%emt 00:00:46]} g5 {[%clk
00:07:43]} {[%emt 00:01:19]} 49. Be3+ {[%clk 00:00:42]} {[%emt 00:00:41]} Kc2
{[%clk 00:07:58]} {[%emt 00:00:15]} 50. b4 {[%clk 00:00:53]} {[%emt 00:00:20]}
Rd3 {[%clk 00:07:39]} {[%emt 00:00:48]} 51. Rc5+ {[%clk 00:00:52]} {[%emt
00:00:31]} Kb3 {[%clk 00:06:22]} {[%emt 00:01:47]} 52. Kf3 {[%clk 00:01:16]}
{[%emt 00:00:07]} Nxg4 {[%clk 00:04:14]} {[%emt 00:02:37]} 53. Kxg4 {[%clk
00:01:42]} {[%emt 00:00:04]} Rxe3 {[%clk 00:04:38]} {[%emt 00:00:06]} 54. Rxc7
{[%clk 00:02:04]} {[%emt 00:00:08]} Kxb4 {[%clk 00:04:46]} {[%emt 00:00:23]} 55.
Rc6 {[%clk 00:02:17]} {[%emt 00:00:17]} Re4 {[%clk 00:04:48]} {[%emt 00:00:28]}
56. Kg3 {[%clk 00:02:40]} {[%emt 00:00:08]} h5 {[%clk 00:04:52]} {[%emt
00:00:26]} 57. Rc8 {[%clk 00:01:34]} {[%emt 00:01:35]} Re5 {[%clk 00:04:41]}
{[%emt 00:00:41]} 58. Rh8 {[%clk 00:01:50]} {[%emt 00:00:14]} h4+ {[%clk
00:04:44]} {[%emt 00:00:28]} 59. Kg4 {[%clk 00:02:15]} {[%emt 00:00:06]} Kc4
{[%clk 00:05:05]} {[%emt 00:00:08]} 60. Rc8+ {[%clk 00:02:33]} {[%emt
00:00:11]} Kd3 {[%clk 00:05:09]} {[%emt 00:00:26]} 61. Rd8+ {[%clk 00:02:22]}
{[%emt 00:00:41]} Ke2 {[%clk 00:02:44]} {[%emt 00:02:55]} 62. Rf8 {[%clk
00:02:14]} {[%emt 00:00:39]} Re3 {[%clk 00:02:31]} {[%emt 00:00:43]} 63. Kxg5
{[%clk 00:01:30]} {[%emt 00:01:13]} h3 {[%clk 00:02:54]} {[%emt 00:00:07]} 64.
Kg4 {[%clk 00:01:52]} {[%emt 00:00:08]} Rc3 {[%clk 00:01:36]} {[%emt 00:01:48]}
65. Rf7 {[%clk 00:02:16]} {[%emt 00:00:06]} Rb3 {[%clk 00:01:42]} {[%emt
00:00:23]} 66. Rf8 {[%emt 00:00:07]} 1/2-1/2

[Event "TOP 12F 2021"]
[Site "RENNES, France"]
[Date "2021.08.27"]
[Round "3.4"]
[White "Nicoara, Malina"]
[Black "Bonvalot, Isabelle"]
[Result "1-0"]
[TimeControl "1H30 + 30 sec/coup"]
[WhiteElo "2066"]
[BlackElo "1831"]

1. d4 {[%clk 01:30:14]} {[%emt 00:00:46]} f5 {[%clk 01:30:56]} {[%emt
00:00:04]} 2. g3 {[%clk 01:30:26]} {[%emt 00:00:17]} g6 {[%clk 01:31:20]}
{[%emt 00:00:07]} 3. Bg2 {[%clk 01:30:43]} {[%emt 00:00:14]} Bg7 {[%clk
01:31:46]} {[%emt 00:00:04]} 4. Nf3 {[%clk 01:27:45]} {[%emt 00:03:27]} Nf6
{[%clk 01:30:00]} {[%emt 00:02:16]} 5. O-O {[%clk 01:26:42]} {[%emt 00:01:33]}
d6 {[%clk 01:30:09]} {[%emt 00:00:21]} 6. b3 {[%clk 01:26:12]} {[%emt
00:01:00]} O-O {[%clk 01:28:24]} {[%emt 00:02:15]} 7. Bb2 {[%clk 01:26:34]}
{[%emt 00:00:07]} Na6 {[%clk 01:19:52]} {[%emt 00:09:03]} 8. Nbd2 {[%clk
01:25:32]} {[%emt 00:01:32]} c5 {[%clk 01:16:31]} {[%emt 00:03:52]} 9. e3
{[%clk 01:17:45]} {[%emt 00:08:18]} Rb8 {[%clk 01:11:48]} {[%emt 00:05:12]} 10.
c4 {[%clk 01:07:47]} {[%emt 00:10:28]} b6 {[%clk 01:06:43]} {[%emt 00:05:35]}
11. a3 {[%clk 00:57:21]} {[%emt 00:10:56]} Nc7 {[%clk 01:06:00]} {[%emt
00:01:13]} 12. Qc2 {[%clk 00:56:47]} {[%emt 00:01:04]} Bb7 {[%clk 01:00:52]}
{[%emt 00:05:39]} 13. d5 {[%clk 00:50:03]} {[%emt 00:07:14]} b5 {[%clk
00:59:04]} {[%emt 00:02:18]} 14. Bc3 {[%clk 00:44:19]} {[%emt 00:06:14]} Qd7
{[%clk 00:45:03]} {[%emt 00:14:31]} 15. Rad1 {[%clk 00:41:07]} {[%emt
00:03:42]} Ba6 {[%clk 00:43:42]} {[%emt 00:01:51]} 16. Rfe1 {[%clk 00:40:45]}
{[%emt 00:00:53]} Rbd8 {[%clk 00:32:28]} {[%emt 00:11:43]} 17. e4 {[%clk
00:33:03]} {[%emt 00:08:12]} fxe4 {[%clk 00:31:33]} {[%emt 00:01:25]} 18. Nxe4
{[%clk 00:33:25]} {[%emt 00:00:08]} bxc4 {[%clk 00:30:41]} {[%emt 00:01:22]} 19.
bxc4 {[%clk 00:33:21]} {[%emt 00:00:34]} Nxe4 {[%clk 00:21:43]} {[%emt
00:09:28]} 20. Bxg7 {[%clk 00:33:08]} {[%emt 00:00:43]} Kxg7 {[%clk 00:21:04]}
{[%emt 00:01:09]} 21. Rxe4 {[%clk 00:32:56]} {[%emt 00:00:41]} Rde8 {[%clk
00:17:42]} {[%emt 00:03:52]} 22. Qc3+ {[%clk 00:31:09]} {[%emt 00:02:18]} Kg8
{[%clk 00:17:25]} {[%emt 00:00:48]} 23. Rde1 {[%clk 00:27:14]} {[%emt
00:04:24]} Rf7 {[%clk 00:14:29]} {[%emt 00:03:26]} 24. Ng5 {[%clk 00:26:59]}
{[%emt 00:00:46]} Rf5 {[%clk 00:14:28]} {[%emt 00:00:31]} 25. Bh3 {[%clk
00:27:03]} {[%emt 00:00:26]} h6 {[%clk 00:12:15]} {[%emt 00:02:43]} 26. Bxf5
{[%clk 00:26:41]} {[%emt 00:00:51]} gxf5 {[%clk 00:12:20]} {[%emt 00:00:25]} 27.
Rh4 {[%clk 00:26:39]} {[%emt 00:00:31]} e5 {[%clk 00:12:05]} {[%emt 00:00:45]}
28. dxe6 {[%clk 00:25:21]} {[%emt 00:01:48]} Nxe6 {[%clk 00:11:19]} {[%emt
00:01:16]} 29. Rxh6 {[%clk 00:25:22]} {[%emt 00:00:29]} Nxg5 {[%clk 00:11:00]}
{[%emt 00:00:49]} 30. Qh8+ {[%clk 00:25:46]} {[%emt 00:00:06]} 1-0

[Event "TOP 12F 2021"]
[Site "RENNES, France"]
[Date "2021.08.27"]
[Round "3.5"]
[White "Navrotescu, Andreea"]
[Black "Seite, Yamina"]
[Result "1-0"]
[TimeControl "1H30 + 30 sec/coup"]
[WhiteElo "2249"]
[BlackElo "1870"]

1. Nf3 {[%clk 01:30:56]} {[%emt 00:00:03]} d5 {[%clk 01:30:54]} {[%emt
00:00:07]} 2. c4 {[%clk 01:31:22]} {[%emt 00:00:04]} e6 {[%clk 01:31:19]}
{[%emt 00:00:05]} 3. g3 {[%clk 01:31:46]} {[%emt 00:00:06]} Nf6 {[%clk
01:31:24]} {[%emt 00:00:24]} 4. Bg2 {[%clk 01:32:09]} {[%emt 00:00:06]} Be7
{[%clk 01:31:32]} {[%emt 00:00:23]} 5. O-O {[%clk 01:32:21]} {[%emt 00:00:19]}
O-O {[%clk 01:31:49]} {[%emt 00:00:12]} 6. b3 {[%clk 01:32:32]} {[%emt
00:00:19]} c5 {[%clk 01:29:16]} {[%emt 00:03:03]} 7. Bb2 {[%clk 01:32:32]}
{[%emt 00:00:29]} Nc6 {[%clk 01:28:31]} {[%emt 00:01:16]} 8. e3 {[%clk
01:31:26]} {[%emt 00:01:36]} b6 {[%clk 01:22:01]} {[%emt 00:07:01]} 9. Nc3
{[%clk 01:31:28]} {[%emt 00:00:27]} Bb7 {[%clk 01:19:27]} {[%emt 00:03:04]} 10.
cxd5 {[%clk 01:31:39]} {[%emt 00:00:18]} exd5 {[%clk 01:19:10]} {[%emt
00:00:47]} 11. d4 {[%clk 01:31:41]} {[%emt 00:00:28]} Rc8 {[%clk 01:14:18]}
{[%emt 00:05:22]} 12. Rc1 {[%clk 01:17:21]} {[%emt 00:14:51]} Qd7 {[%clk
00:58:26]} {[%emt 00:16:23]} 13. dxc5 {[%clk 01:13:49]} {[%emt 00:04:01]} bxc5
{[%clk 00:58:11]} {[%emt 00:00:45]} 14. Na4 {[%clk 01:13:45]} {[%emt 00:00:34]}
c4 {[%clk 00:47:07]} {[%emt 00:11:35]} 15. Bxf6 {[%clk 01:12:41]} {[%emt
00:01:34]} Bxf6 {[%clk 00:47:31]} {[%emt 00:00:07]} 16. Nc5 {[%clk 01:12:50]}
{[%emt 00:00:20]} Qe7 {[%clk 00:46:44]} {[%emt 00:01:17]} 17. Nxb7 {[%clk
01:13:09]} {[%emt 00:00:10]} Qxb7 {[%clk 00:47:09]} {[%emt 00:00:06]} 18. Qxd5
{[%clk 01:12:08]} {[%emt 00:01:31]} Qb6 {[%clk 00:37:14]} {[%emt 00:10:25]} 19.
Qxc4 {[%clk 01:09:13]} {[%emt 00:03:26]} g6 {[%clk 00:31:59]} {[%emt 00:05:45]}
20. Qf4 {[%clk 01:07:29]} {[%emt 00:02:13]} Bg7 {[%clk 00:28:43]} {[%emt
00:03:47]} 21. Ng5 {[%clk 01:05:46]} {[%emt 00:02:13]} Ne5 {[%clk 00:25:17]}
{[%emt 00:03:56]} 22. Rxc8 {[%clk 01:00:06]} {[%emt 00:06:10]} Rxc8 {[%clk
00:25:39]} {[%emt 00:00:07]} 23. Bd5 {[%clk 01:00:07]} {[%emt 00:00:29]} Qf6
{[%clk 00:22:03]} {[%emt 00:04:07]} 24. Qxf6 {[%clk 00:57:10]} {[%emt
00:03:26]} Bxf6 {[%clk 00:22:28]} {[%emt 00:00:06]} 25. Nf3 {[%clk 00:55:07]}
{[%emt 00:02:33]} Nxf3+ {[%clk 00:18:47]} {[%emt 00:04:10]} 26. Bxf3 {[%clk
00:54:21]} {[%emt 00:01:16]} Kf8 {[%clk 00:14:22]} {[%emt 00:04:56]} 27. Rd1
{[%clk 00:54:09]} {[%emt 00:00:42]} Rc2 {[%clk 00:11:56]} {[%emt 00:02:56]} 28.
a4 {[%clk 00:54:20]} {[%emt 00:00:20]} Rc3 {[%clk 00:11:38]} {[%emt 00:00:49]}
29. Rd7 {[%clk 00:54:36]} {[%emt 00:00:13]} Be7 {[%clk 00:09:46]} {[%emt
00:02:22]} 30. Bd5 {[%clk 00:54:47]} {[%emt 00:00:19]} Rd3 {[%clk 00:07:22]}
{[%emt 00:02:55]} 31. e4 {[%clk 00:54:56]} {[%emt 00:00:21]} f5 {[%clk
00:06:10]} {[%emt 00:01:42]} 32. e5 {[%clk 00:53:02]} {[%emt 00:02:24]} Ke8
{[%clk 00:01:35]} {[%emt 00:05:05]} 33. e6 {[%clk 00:53:21]} {[%emt 00:00:11]}
Rd2 {[%clk 00:01:09]} {[%emt 00:00:56]} 34. Bc6 {[%clk 00:51:51]} {[%emt
00:01:59]} Rxd7 {[%clk 00:01:33]} {[%emt 00:00:07]} 35. Bxd7+ {[%clk 00:52:19]}
{[%emt 00:00:02]} Kd8 {[%clk 00:01:54]} {[%emt 00:00:08]} 36. f4 {[%clk
00:50:36]} {[%emt 00:02:13]} Kc7 {[%clk 00:01:13]} {[%emt 00:01:12]} 37. Kg2
{[%clk 00:50:12]} {[%emt 00:00:53]} Kd6 {[%clk 00:01:13]} {[%emt 00:00:30]} 38.
b4 {[%clk 00:49:23]} {[%emt 00:01:20]} Kd5 {[%clk 00:00:43]} {[%emt 00:01:00]}
39. b5 {[%clk 00:49:50]} {[%emt 00:00:03]} Kc5 {[%clk 00:00:58]} {[%emt
00:00:15]} 40. a5 {[%clk 00:49:11]} {[%emt 00:01:09]} Bd8 {[%clk 00:01:06]}
{[%emt 00:00:22]} 41. b6 {[%clk 00:49:08]} {[%emt 00:00:33]} Kd5 {[%emt
00:00:56]} 1-0

[Event "TOP 12F 2021"]
[Site "RENNES, France"]
[Date "2021.08.27"]
[Round "3.6"]
[White "Le Marec, Laura"]
[Black "Haussernot, Cecile"]
[Result "0-1"]
[TimeControl "1H30 + 30 sec/coup"]
[WhiteElo "2118"]
[BlackElo "2171"]

1. c4 {[%clk 01:30:54]} {[%emt 00:00:05]} c6 {[%clk 01:19:12]} {[%emt
00:11:49]} 2. e4 {[%clk 01:31:06]} {[%emt 00:00:18]} e6 {[%clk 01:19:06]}
{[%emt 00:00:35]} 3. Nc3 {[%clk 01:25:07]} {[%emt 00:06:29]} d5 {[%clk
01:19:18]} {[%emt 00:00:19]} 4. cxd5 {[%clk 01:25:06]} {[%emt 00:00:31]} exd5
{[%clk 01:18:23]} {[%emt 00:01:24]} 5. exd5 {[%clk 01:24:59]} {[%emt 00:00:37]}
cxd5 {[%clk 01:17:48]} {[%emt 00:01:05]} 6. d4 {[%clk 01:23:08]} {[%emt
00:02:20]} Nc6 {[%clk 01:14:29]} {[%emt 00:03:50]} 7. Nf3 {[%clk 01:13:54]}
{[%emt 00:09:44]} Nf6 {[%clk 01:14:10]} {[%emt 00:00:50]} 8. Bd3 {[%clk
01:05:09]} {[%emt 00:09:14]} Be6 {[%clk 01:07:39]} {[%emt 00:07:01]} 9. O-O
{[%clk 01:01:31]} {[%emt 00:04:06]} h6 {[%clk 00:54:53]} {[%emt 00:13:18]} 10.
Bf4 {[%clk 00:51:25]} {[%emt 00:10:35]} Bd6 {[%clk 00:54:02]} {[%emt 00:01:22]}
11. Bxd6 {[%clk 00:44:33]} {[%emt 00:07:22]} Qxd6 {[%clk 00:54:27]} {[%emt
00:00:06]} 12. Rc1 {[%clk 00:39:38]} {[%emt 00:05:24]} O-O {[%clk 00:53:37]}
{[%emt 00:01:19]} 13. Na4 {[%clk 00:33:35]} {[%emt 00:06:33]} Rac8 {[%clk
00:48:36]} {[%emt 00:05:31]} 14. h3 {[%clk 00:22:03]} {[%emt 00:12:03]} Ne4
{[%clk 00:44:25]} {[%emt 00:04:41]} 15. a3 {[%clk 00:15:01]} {[%emt 00:07:31]}
Qf4 {[%clk 00:38:22]} {[%emt 00:06:33]} 16. b4 {[%clk 00:10:54]} {[%emt
00:04:37]} Ng5 {[%clk 00:37:53]} {[%emt 00:00:59]} 17. Nxg5 {[%clk 00:09:01]}
{[%emt 00:02:24]} Qxg5 {[%clk 00:38:06]} {[%emt 00:00:17]} 18. f4 {[%clk
00:05:44]} {[%emt 00:03:47]} Qf6 {[%clk 00:38:04]} {[%emt 00:00:32]} 19. f5
{[%clk 00:05:02]} {[%emt 00:01:12]} Qxd4+ {[%clk 00:21:56]} {[%emt 00:16:37]}
20. Kh1 {[%clk 00:05:21]} {[%emt 00:00:11]} Bd7 {[%clk 00:21:38]} {[%emt
00:00:49]} 21. f6 {[%clk 00:04:14]} {[%emt 00:01:37]} g6 {[%clk 00:18:46]}
{[%emt 00:03:22]} 22. Qd2 {[%clk 00:04:19]} {[%emt 00:00:25]} Qh4 {[%clk
00:17:58]} {[%emt 00:01:19]} 23. Rf4 {[%clk 00:04:23]} {[%emt 00:00:25]} Qg5
{[%clk 00:17:52]} {[%emt 00:00:37]} 24. Nc5 {[%clk 00:02:17]} {[%emt 00:02:36]}
Ne5 {[%clk 00:16:51]} {[%emt 00:01:30]} 25. Rcf1 {[%clk 00:02:26]} {[%emt
00:00:21]} Bc6 {[%clk 00:12:22]} {[%emt 00:04:59]} 26. Be2 {[%clk 00:02:39]}
{[%emt 00:00:17]} b6 {[%clk 00:10:17]} {[%emt 00:02:36]} 27. Nb3 {[%clk
00:01:45]} {[%emt 00:01:23]} d4 {[%clk 00:10:15]} {[%emt 00:00:32]} 28. Bd1
{[%clk 00:02:07]} {[%emt 00:00:08]} Nc4 {[%clk 00:09:51]} {[%emt 00:00:54]} 29.
Qf2 {[%clk 00:02:13]} {[%emt 00:00:24]} Ne3 {[%clk 00:10:04]} {[%emt 00:00:17]}
30. Rg1 {[%clk 00:01:56]} {[%emt 00:00:46]} Nxg2 {[%clk 00:09:35]} {[%emt
00:00:59]} 31. Nxd4 {[%clk 00:02:08]} {[%emt 00:00:19]} Qxf4 {[%clk 00:09:43]}
{[%emt 00:00:23]} 32. Nxc6 {[%clk 00:00:49]} {[%emt 00:01:48]} Qxf2 {[%clk
00:10:03]} {[%emt 00:00:09]} 33. Ne7+ {[%clk 00:01:10]} {[%emt 00:00:09]} Kh7
{[%clk 00:10:19]} {[%emt 00:00:14]} 0-1